bitfinex-derivatives/quotes_SOLF0:USTF0_20250527
["timestamp","ask_amount","ask_price","bid_price","bid_amount"]
[1748353444208,5.6014,178.43,178.39,0.04035633]
[1748353444408,34.32,178.46,178.39,0.04299789]
[1748353444812,5.6019,178.41,178.39,0.04299789]
[1748353445013,34.32,178.46,178.39,0.04299789]
[1748353445206,5.6018,178.41,178.39,0.04299789]
[1748353445612,34.32,178.46,178.39,0.04299789]
[1748353446317,5.6021,178.4,178.39,0.04299789]
[1748353446719,34.32,178.46,178.39,0.04299789]
[1748353447413,5.6016,178.42,178.39,0.04299789]
[1748353447613,34.32,178.46,178.39,0.04299789]
[1748353448019,5.602,178.41,178.39,0.04299789]
[1748353448416,5.6015,178.42,178.39,0.04299789]
[1748353448821,34.32,178.46,178.39,0.04299789]
[1748353450121,39.9204,178.46,178.39,0.04299789]
[1748353450322,34.32,178.46,178.39,0.04299789]
[1748353450619,34.32,178.52,178.39,0.04299789]
[1748353450820,5.5995,178.49,178.44,0.04256883]
[1748353451019,34.32,178.52,178.44,0.04256883]
[1748353451219,5.5992,178.5,178.46,5.6]
[1748353451719,5.5996,178.48,178.45,1.9586]
[1748353452023,34.32,178.52,178.45,1.9586]
[1748353452721,34.32,178.52,178.44,0.04256883]
[1748353452920,5.6005,178.45,178.44,0.04256883]
[1748353454318,5.6005,178.45,178.44,6.883e-05]
[1748353454522,5.602,178.41,178.36,3.9376]
[1748353454723,0.6484,178.51,178.36,3.9376]
[1748353455030,34.3,178.5,178.36,3.9376]
[1748353455328,34.3,178.5,178.37,5.6029]
[1748353455527,5.6017,178.42,178.41,0.03747944]
[1748353458229,5.6012,178.43,178.41,0.03747944]
[1748353458434,34.34092326,178.45,178.41,0.03747944]
[1748353458732,5.6014,178.42,178.41,0.03747944]
[1748353464640,5.6012,178.43,178.41,0.03747944]
[1748353465831,5.6014,178.42,178.41,0.03747944]
[1748353467337,0.04092326,178.45,178.41,0.03747944]
[1748353468538,5.6011,178.43,178.41,0.03747944]
[1748353469042,5.6009,178.44,178.41,0.03747944]
[1748353469347,0.04092326,178.45,178.41,0.03747944]
[1748353470239,5.6009,178.44,178.41,0.03747944]
[1748353470542,0.04092326,178.45,178.41,0.03747944]
[1748353471340,5.6014,178.42,178.41,0.03747944]
[1748353471743,5.602,178.41,178.35,34.3]
[1748353472145,34.3,178.46,178.35,34.3]
[1748353472449,34.3,178.46,178.33,1.9367]
[1748353472739,0.03672431,178.41,178.38,0.04011833]
[1748353472944,34.3,178.4,178.38,0.04011833]
[1748353473139,34.3,178.4,178.3,0.6357676]
[1748353473339,34.3,178.4,178.27,40.50011877]
[1748353473647,34.3,178.4,178.27,39.2370776]
[1748353474146,0.03594478,178.35,178.32,0.04034047]
[1748353474342,0.03594478,178.35,178.32,5.64494047]
[1748353475143,0.03594478,178.35,178.32,0.04034047]
[1748353476350,5.63954478,178.35,178.32,0.04034047]
[1748353476646,0.03594478,178.35,178.32,0.04034047]
[1748353476847,5.6042,178.34,178.32,0.04034047]
[1748353477246,0.03594478,178.35,178.32,0.04034047]
[1748353478350,5.63964478,178.35,178.32,0.04034047]
[1748353478851,5.6043,178.33,178.32,0.04034047]
[1748353479146,39.8643,178.33,178.32,0.04034047]
[1748353479545,5.6054,178.3,178.25,0.63834576]
[1748353479747,34.26,178.33,178.23,7.76604214]
[1748353480440,34.26,178.33,178.26,5.6063]
[1748353480645,5.64246509,178.31,178.28,0.03712631]
[1748353480851,0.03736509,178.31,178.28,0.03712631]
[1748353481854,5.6055,178.3,178.28,0.03712631]
[1748353482349,5.6055,178.29,178.28,0.03712631]
[1748353484049,34.29736509,178.31,178.28,0.03712631]
[1748353485148,5.6052,178.3,178.28,0.03712631]
[1748353485655,34.29736509,178.31,178.28,0.03712631]
[1748353486251,5.6055,178.29,178.28,0.03712631]
[1748353486449,34.29736509,178.31,178.2,0.63943581]
[1748353486648,34.26,178.31,178.2,0.63943581]
[1748353486844,12.23254506,178.3,178.2,0.63943581]
[1748353487052,12.23254506,178.3,178.15,1.90247698]
[1748353487250,0.4887,178.29,178.15,1.90247698]
[1748353487453,0.04152779,178.24,178.2,0.03731926]
[1748353487649,34.28,178.23,178.2,0.03731926]
[1748353490257,39.8877,178.23,178.2,0.03731926]
[1748353490452,34.28,178.23,178.2,0.03731926]
[1748353490653,5.608,178.21,178.2,0.03731926]
[1748353490854,34.28,178.23,178.2,0.03731926]
[1748353491458,5.6078,178.22,178.2,0.03731926]
[1748353491964,5.608,178.21,178.2,0.03731926]
[1748353493862,34.28,178.23,178.2,0.03731926]
[1748353495063,5.6077,178.22,178.2,0.03731926]
[1748353495363,34.28,178.23,178.2,0.03731926]
[1748353495563,39.8877,178.23,178.2,0.03731926]
[1748353496066,34.28,178.23,178.2,0.03731926]
[1748353496966,34.28,178.23,178.21,5.608]
[1748353497262,0.04152779,178.24,178.2,0.03731926]
[1748353497658,0.04152779,178.24,178.2,5.64531926]
[1748353497862,0.04152779,178.24,178.2,0.03731926]
[1748353499867,5.64872779,178.24,178.2,5.64561926]
[1748353500069,5.64872779,178.24,178.2,0.03731926]
[1748353500273,0.04152779,178.24,178.2,0.03731926]
[1748353501066,5.6076,178.23,178.2,0.03731926]
[1748353501262,0.04152779,178.24,178.2,0.03731926]
[1748353501463,0.04152779,178.24,178.22,5.6077]
[1748353501666,0.04152779,178.24,178.2,0.03731926]
[1748353502169,5.64882779,178.24,178.2,0.03731926]
[1748353502567,5.6075,178.23,178.2,0.03731926]
[1748353502873,0.04152779,178.24,178.2,0.03731926]
[1748353503563,34.28,178.23,178.2,0.03731926]
[1748353503769,0.04152779,178.24,178.2,0.03731926]
[1748353504065,34.28,178.23,178.2,0.03731926]
[1748353504462,0.04152779,178.24,178.2,0.03731926]
[1748353504968,0.04152779,178.24,178.23,5.6074]
[1748353505169,34.22,178.28,178.21,3.8541]
[1748353505569,5.6065,178.26,178.22,5.6075]
[1748353505773,34.22,178.28,178.21,3.8541]
[1748353506072,0.03576729,178.26,178.21,3.8541]
[1748353506269,39.8259,178.28,178.21,3.8541]
[1748353506476,34.22,178.28,178.21,3.8541]
[1748353506775,34.22,178.28,178.22,1.9521]
[1748353507166,0.03941298,178.27,178.22,1.9521]
[1748353507367,518.54,178.31,178.22,1.9521]
[1748353507570,484.32,178.31,178.22,1.9521]
[1748353507972,484.52,178.4,178.22,36.1721]
[1748353508270,34.22,178.38,178.22,36.1721]
[1748353508477,484.52,178.4,178.22,36.1721]
[1748353508678,5.64679463,178.32,178.28,5.64726586]
[1748353508973,0.04209463,178.32,178.28,0.03876917]
[1748353509177,0.04209463,178.32,178.29,5.6055]
[1748353509875,0.04209463,178.32,178.28,0.03876917]
[1748353510074,34.20442451,178.37,178.28,0.03876917]
[1748353510472,5.6049,178.32,178.28,0.03876917]
[1748353510867,34.20442451,178.37,178.28,0.03876917]
[1748353511063,5.64293069,178.34,178.3,5.6052]
[1748353511270,5.64293069,178.34,178.3,5.64221998]
[1748353511468,0.03883069,178.34,178.3,0.03701998]
[1748353511663,5.6043,178.33,178.3,0.03701998]
[1748353511872,0.03883069,178.34,178.3,0.03701998]
[1748353512076,518.74,178.4,178.3,2.05981998]
[1748353512469,518.74,178.4,178.3,0.03701998]
[1748353513074,12.20046347,178.36,178.3,0.03701998]
[1748353513274,5.6049,178.31,178.3,0.03701998]
[1748353513673,39.8049,178.31,178.3,0.03701998]
[1748353514069,5.6049,178.31,178.3,0.03701998]
[1748353514277,39.8049,178.31,178.3,0.03701998]
[1748353514476,17.4149,178.39,178.3,0.03701998]
[1748353514477,0.6049,178.39,178.3,0.03701998]
[1748353514672,484.52,178.4,178.3,0.03701998]
[1748353514880,34.2,178.39,178.3,0.03701998]
[1748353515073,39.8025,178.39,178.3,0.03701998]
[1748353515277,34.2,178.39,178.3,36.17271998]
[1748353515470,34.2,178.39,178.3,38.03511998]
[1748353515669,5.54696534,178.38,178.32,5.6045]
[1748353515869,5.54696534,178.38,178.33,0.03875453]
[1748353516373,5.54696534,178.38,178.33,5.64275453]
[1748353516570,5.54696534,178.38,178.33,0.03875453]
[1748353516774,34.2,178.39,178.33,0.03875453]
[1748353517175,5.6034,178.36,178.33,0.03875453]
[1748353517379,34.2,178.39,178.33,0.03875453]
[1748353517881,5.6038,178.35,178.33,0.03875453]
[1748353518782,5.6039,178.34,178.33,0.03875453]
[1748353519479,5.6037,178.35,178.33,0.03875453]
[1748353519679,484.52,178.4,178.33,0.03875453]
[1748353519874,34.2,178.39,178.33,0.03875453]
[1748353520078,5.6039,178.34,178.33,0.03875453]
[1748353520585,39.8039,178.34,178.33,5.453e-05]
[1748353521282,5.6039,178.34,178.33,5.453e-05]
[1748353521686,39.8039,178.34,178.33,5.453e-05]
[1748353522583,5.64239999,178.35,178.33,5.453e-05]
[1748353522984,5.604,178.34,178.33,5.453e-05]
[1748353524790,5.604,178.34,178.33,5.453e-05]
[1748353526492,0.03869999,178.35,178.33,5.453e-05]
[1748353527489,34.2,178.34,178.33,5.453e-05]
[1748353527992,39.804,178.34,178.33,5.453e-05]
[1748353528793,5.604,178.34,178.33,5.453e-05]
[1748353529894,34.23869999,178.35,178.33,5.453e-05]
[1748353530394,0.03869999,178.35,178.33,5.453e-05]
[1748353531194,5.64259999,178.35,178.33,5.453e-05]
[1748353531592,5.604,178.34,178.33,5.453e-05]
[1748353532398,39.804,178.34,178.33,5.453e-05]
[1748353538303,34.2,178.34,178.25,2.0007]
[1748353539010,5.6064,178.27,178.25,2.0007]
[1748353539512,5.64240069,178.28,178.25,2.0007]
[1748353539716,5.64240069,178.28,178.25,2.03963031]
[1748353540213,0.03640069,178.28,178.25,2.03963031]
[1748353540916,0.03640069,178.28,178.25,0.03893031]
[1748353542411,5.6065,178.26,178.25,0.03893031]
[1748353543712,39.7462,178.27,178.25,0.03893031]
[1748353543911,0.03640069,178.28,178.25,0.03893031]
[1748353544415,34.14,178.32,178.25,0.03893031]
[1748353544605,34.14,178.35,178.25,0.03893031]
[1748353544805,34.14,178.36,178.24,119.26187566]
[1748353545007,34.14,178.36,178.28,5.6056]
[1748353545315,34.14,178.36,178.3,0.03873663]
[1748353545502,5.6047,178.32,178.3,0.03873663]
[1748353545706,34.14,178.36,178.3,0.03873663]
[1748353546110,5.6049,178.31,178.3,0.03873663]
[1748353548212,5.6046,178.32,178.3,0.03873663]
[1748353548414,34.14,178.36,178.3,0.03873663]
[1748353548816,5.6049,178.31,178.3,0.03873663]
[1748353550715,34.14,178.36,178.3,0.03873663]
[1748353552318,5.6042,178.34,178.3,0.03873663]
[1748353552522,34.14,178.36,178.3,0.03873663]
[1748353553813,5.6043,178.33,178.3,0.03873663]
[1748353554510,34.14,178.36,178.3,0.03873663]
[1748353555115,5.6042,178.34,178.3,5.64363663]
[1748353555512,34.14,178.36,178.3,0.03873663]
[1748353555713,34.14,178.36,178.3,0.68079308]
[1748353556217,5.6042,178.34,178.3,6.28569308]
[1748353556418,34.14,178.36,178.3,0.68079308]
[1748353556619,34.14,178.36,178.3,0.03873663]
[1748353556813,5.6045,178.33,178.3,0.03873663]
[1748353557013,34.14,178.36,178.3,0.03873663]
[1748353557212,5.6044,178.33,178.3,0.03873663]
[1748353557422,34.14,178.36,178.3,0.03873663]
[1748353558023,34.14,178.36,178.3,0.68111092]
[1748353558225,5.6041,178.34,178.3,6.28611092]
[1748353558519,34.14,178.36,178.3,0.68111092]
[1748353559421,5.6041,178.34,178.3,6.28631092]
[1748353559821,5.6041,178.34,178.3,5.64393663]
[1748353560420,484.52,178.4,178.3,2.64961092]
[1748353560720,5.6015,178.42,178.38,5.6026]
[1748353560926,34.12,178.43,178.38,0.04298561]
[1748353561425,5.6021,178.41,178.38,0.04298561]
[1748353562221,34.12,178.43,178.38,0.04298561]
[1748353563320,34.12,178.45,178.38,0.04298561]
[1748353563626,34.12,178.45,178.4,0.04127087]
[1748353563822,5.6013,178.43,178.4,0.04127087]
[1748353564322,34.12,178.46,178.4,0.04127087]
[1748353565127,5.6014,178.43,178.4,0.04127087]
[1748353565718,5.6015,178.42,178.4,0.04127087]
[1748353566023,34.12,178.46,178.4,0.04127087]
[1748353566327,34.12,178.46,178.4,5.64317087]
[1748353566526,34.12,178.46,178.4,0.04127087]
[1748353567021,5.6012,178.43,178.4,5.64317087]
[1748353567221,34.12,178.46,178.4,0.04127087]
[1748353567520,5.6011,178.44,178.4,5.64327087]
[1748353567727,5.6011,178.44,178.4,0.04127087]
[1748353568027,5.5991,178.5,178.46,5.6]
[1748353568220,5.5991,178.5,178.46,0.04024775]
[1748353568522,34.02,178.52,178.46,0.04024775]
[1748353568827,5.5999,178.47,178.46,0.04024775]
[1748353569822,0.0406523,178.48,178.37,39.9005]
[1748353570022,34.02,178.47,178.37,39.9005]
[1748353570420,5.6014,178.43,178.38,5.6027]
[1748353570721,34.02,178.47,178.38,5.6027]
[1748353570921,0.0401801,178.44,178.41,0.04029875]
[1748353571525,5.6012,178.43,178.41,0.04029875]
[1748353571825,0.0401801,178.44,178.41,0.04029875]
[1748353572730,0.0401801,178.44,178.41,5.64179875]
[1748353573529,0.0401801,178.44,178.41,0.04029875]
[1748353573923,5.6012,178.43,178.41,0.04029875]
[1748353574126,0.0401801,178.44,178.41,0.04029875]
[1748353575829,5.6410801,178.44,178.41,0.04029875]
[1748353576827,0.0401801,178.44,178.41,0.04029875]
[1748353577334,0.0401801,178.44,178.41,5.64179875]
[1748353577833,0.0401801,178.44,178.41,0.04029875]
[1748353578631,0.0401801,178.44,178.42,5.6012]
[1748353579534,0.0401801,178.44,178.43,5.6011]
[1748353580936,0.0401801,178.44,178.41,0.04029875]
[1748353581329,5.6409801,178.44,178.41,0.04029875]
[1748353581530,0.0401801,178.44,178.41,0.04029875]
[1748353581936,5.6409801,178.44,178.41,0.04029875]
[1748353582239,0.0401801,178.44,178.41,0.04029875]
[1748353582439,5.6013,178.43,178.41,0.04029875]
[1748353582741,0.0401801,178.44,178.41,0.04029875]
[1748353582934,5.6015,178.42,178.41,0.04029875]
[1748353583933,0.0401801,178.44,178.41,0.04029875]
[1748353584437,0.0401801,178.44,178.41,5.64179875]
[1748353585240,0.0401801,178.44,178.41,0.04029875]
[1748353586346,5.6011,178.43,178.41,0.04029875]
[1748353587238,5.6015,178.42,178.41,0.04029875]
[1748353587441,0.0401801,178.44,178.41,0.04029875]
[1748353587942,5.6013,178.43,178.41,0.04029875]
[1748353588544,0.0401801,178.44,178.41,0.04029875]
[1748353588741,5.6015,178.42,178.41,0.04029875]
[1748353589045,0.0401801,178.44,178.41,0.04029875]
[1748353589344,5.6014,178.43,178.41,0.04029875]
[1748353589544,0.0401801,178.44,178.41,0.04029875]
[1748353589741,5.6015,178.42,178.41,0.04029875]
[1748353590345,5.6012,178.43,178.41,0.04029875]
[1748353590542,0.0401801,178.44,178.41,0.04029875]
[1748353590845,5.6411801,178.44,178.41,0.04029875]
[1748353591043,0.0401801,178.44,178.41,0.04029875]
[1748353592350,5.6409801,178.44,178.41,0.04029875]
[1748353592846,5.6011,178.43,178.41,0.04029875]
[1748353593739,5.6410801,178.44,178.41,0.04029875]
[1748353594442,5.6013,178.43,178.41,0.04029875]
[1748353595845,0.0401801,178.44,178.41,0.04029875]
[1748353596248,0.0401801,178.44,178.43,5.6011]
[1748353597645,0.0401801,178.44,178.42,1.9986]
[1748353597847,0.0401801,178.44,178.41,0.04029875]
[1748353598049,5.6013,178.43,178.41,0.04029875]
[1748353598345,0.0401801,178.44,178.41,0.04029875]
[1748353598537,0.0401801,178.44,178.42,5.6014]
[1748353599046,0.0401801,178.44,178.42,5.6012]
[1748353599244,0.0401801,178.44,178.41,0.04029875]
[1748353599647,0.0401801,178.44,178.43,5.6011]
[1748353599851,0.0401801,178.44,178.41,0.04029875]
[1748353600151,0.0401801,178.44,178.41,5.64179875]
[1748353600350,0.0401801,178.44,178.41,0.04029875]
[1748353601960,0.0401801,178.44,178.42,5.6013]
[1748353602646,0.0401801,178.44,178.41,5.64199875]
[1748353603554,0.0401801,178.44,178.42,5.6013]
[1748353603954,0.0401801,178.44,178.41,5.64189875]
[1748353604460,0.0401801,178.44,178.41,0.04029875]
[1748353604658,5.6410801,178.44,178.41,0.04029875]
[1748353605164,5.6410801,178.44,178.41,5.64199875]
[1748353605350,0.0401801,178.44,178.41,0.04029875]
[1748353605661,5.6410801,178.44,178.41,0.04029875]
[1748353606065,0.0401801,178.44,178.41,0.04029875]
[1748353606270,5.6015,178.42,178.41,0.04029875]
[1748353606957,5.6012,178.43,178.41,0.04029875]
[1748353607263,0.0401801,178.44,178.41,0.04029875]
[1748353607465,5.6011,178.43,178.41,0.04029875]
[1748353607966,0.0401801,178.44,178.41,0.04029875]
[1748353609663,0.0401801,178.44,178.41,5.64199875]
[1748353609866,0.0401801,178.44,178.41,0.04029875]
[1748353610060,6.96567106,178.55,178.41,0.04029875]
[1748353610061,33.9,178.5,178.41,0.04029875]
[1748353610257,14.5829669,178.55,178.4,2.87004027]
[1748353610258,33.9,178.51,178.4,2.87004027]
[1748353610461,33.9,178.51,178.41,0.85444027]
[1748353610661,33.9,178.51,178.43,0.64258665]
[1748353611058,33.9,178.51,178.45,0.03991181]
[1748353613162,33.9,178.51,178.47,5.5997]
[1748353613364,0.2202,178.57,178.45,0.6819285]
[1748353613568,33.9,178.56,178.49,0.04125666]
[1748353614267,5.5989,178.5,178.49,0.04125666]
[1748353615673,33.9,178.56,178.49,0.04125666]
[1748353616870,5.5979,178.54,178.49,0.04125666]
[1748353617067,33.9,178.56,178.49,0.04125666]
[1748353617363,5.5979,178.54,178.5,5.5987]
[1748353617568,5.5979,178.54,178.49,2.08435666]
[1748353617874,5.597,178.57,178.53,5.5978]
[1748353618170,33.9,178.63,178.53,0.04247494]
[1748353618474,5.5962,178.59,178.56,5.63559021]
[1748353618672,33.9,178.63,178.56,0.03859021]
[1748353618872,41.51729584,178.63,178.56,0.03859021]
[1748353619075,5.5967,178.57,178.56,0.03859021]
[1748353619565,5.5965,178.58,178.56,0.03859021]
[1748353619965,41.51729584,178.63,178.56,0.03859021]
[1748353620167,5.5967,178.57,178.56,0.03859021]
[1748353623272,33.88,178.58,178.49,2.0431]
[1748353623474,7.61729584,178.59,178.49,2.0431]
[1748353623671,33.88,178.58,178.49,2.0431]
[1748353623865,33.88,178.57,178.49,2.0431]
[1748353624275,0.03773594,178.55,178.51,0.03566992]
[1748353625778,5.5982,178.53,178.51,0.03566992]
[1748353625972,0.03773594,178.55,178.51,0.03566992]
[1748353626669,0.03773594,178.55,178.52,5.5981]
[1748353626979,0.03773594,178.55,178.51,0.03566992]
[1748353629968,5.63533594,178.55,178.52,5.5983]
[1748353630672,0.03773594,178.55,178.52,5.5983]
[1748353631278,5.63523594,178.55,178.52,5.5983]
[1748353631984,5.5964,178.59,178.51,0.03566992]
[1748353632278,33.74,178.64,178.51,0.03566992]
[1748353632474,33.74,178.64,178.52,7.61729584]
[1748353632672,33.74,178.64,178.53,1.9553]
[1748353632877,5.5963,178.59,178.57,0.03652039]
[1748353633076,33.74,178.64,178.57,0.03652039]
[1748353634582,5.5952,178.62,178.58,5.5964]
[1748353634882,33.74,178.64,178.57,0.03652039]
[1748353635383,483.94,178.67,178.57,33.77652039]
[1748353635579,483.94,178.67,178.6,5.5955]
[1748353635782,483.94,178.67,178.62,0.03656194]
[1748353636171,5.5948,178.64,178.62,0.03656194]
[1748353636578,5.5949,178.63,178.62,0.03656194]
[1748353636775,483.94,178.67,178.62,0.03656194]
[1748353637473,33.74,178.68,178.62,0.03656194]
[1748353637876,5.5942,178.65,178.62,0.03656194]
[1748353638082,33.74,178.68,178.62,0.03656194]
[1748353638286,5.5946,178.64,178.62,0.03656194]
[1748353638885,33.74,178.68,178.62,0.03656194]
[1748353639277,5.5945,178.65,178.62,0.03656194]
[1748353639482,33.74,178.68,178.62,0.03656194]
[1748353641190,5.5947,178.64,178.62,0.03656194]
[1748353641387,33.74,178.68,178.62,0.03656194]
[1748353641795,5.5947,178.64,178.62,0.03656194]
[1748353643376,5.5944,178.65,178.62,0.03656194]
[1748353643580,33.74,178.68,178.62,0.03656194]
[1748353644677,5.5947,178.64,178.62,0.03656194]
[1748353644888,33.74,178.68,178.62,0.03656194]
[1748353645885,5.5949,178.63,178.62,0.03656194]
[1748353650691,5.5968,178.57,178.51,34.35581648]
[1748353650886,33.72,178.63,178.51,34.35581648]
[1748353650887,41.33729584,178.63,178.51,34.35581648]
[1748353651089,2.0231,178.62,178.51,34.35581648]
[1748353651290,5.5973,178.56,178.51,34.35581648]
[1748353651598,33.72,178.58,178.51,0.63581648]
[1748353651793,5.5977,178.54,178.53,0.04059531]
[1748353653197,7.61729584,178.55,178.45,3.86524965]
[1748353653689,7.61729584,178.55,178.46,5.6001]
[1748353653901,33.72,178.58,178.45,3.22943317]
[1748353654096,0.03577293,178.53,178.5,0.03740629]
[1748353654403,33.75577293,178.53,178.5,0.03740629]
[1748353654601,39.35387293,178.53,178.5,0.03740629]
[1748353654807,0.03577293,178.53,178.5,0.03740629]
[1748353658098,0.03577293,178.53,178.52,5.5983]
[1748353660007,0.03577293,178.53,178.5,0.03740629]
[1748353660513,5.5986,178.51,178.5,0.03740629]
[1748353660710,0.03577293,178.53,178.5,0.03740629]
[1748353661002,0.03577293,178.53,178.51,5.5986]
[1748353661508,0.03577293,178.53,178.5,0.03740629]
[1748353663211,0.03577293,178.53,178.5,5.63630629]
[1748353663407,0.03577293,178.53,178.5,0.03740629]
[1748353663900,0.03577293,178.53,178.52,5.5983]
[1748353664306,0.03577293,178.53,178.5,0.03740629]
[1748353664807,33.6,178.59,178.52,5.5981]
[1748353665002,33.6,178.59,178.51,1.9517]
[1748353665201,33.6,178.59,178.51,3.8143]
[1748353665407,5.5965,178.58,178.55,5.5973]
[1748353665603,33.6,178.59,178.51,3.8143]
[1748353665811,0.04187156,178.57,178.53,0.04092744]
[1748353668009,5.5977,178.54,178.53,0.04092744]
[1748353668522,5.5976,178.55,178.53,0.04092744]
[1748353669215,0.04187156,178.57,178.53,0.04092744]
[1748353669814,5.5977,178.54,178.53,0.04092744]
[1748353670118,39.1977,178.54,178.53,0.04092744]
[1748353670715,33.6,178.54,178.45,0.63909721]
[1748353671316,1.968,178.56,178.45,0.63909721]
[1748353671514,33.6,178.55,178.45,2.61959721]
[1748353671711,0.03735973,178.52,178.49,5.599]
[1748353672325,0.03735973,178.52,178.5,5.5989]
[1748353672820,0.03735973,178.52,178.48,0.0413243]
[1748353673620,0.03735973,178.52,178.49,5.599]
[1748353674225,0.03735973,178.52,178.48,0.0413243]
[1748353674226,5.5988,178.51,178.48,0.0413243]
[1748353674517,0.03735973,178.52,178.48,0.0413243]
[1748353675724,0.03735973,178.52,178.49,5.5992]
[1748353676330,0.03735973,178.52,178.48,0.0413243]
[1748353679333,33.63735973,178.52,178.48,0.0413243]
[1748353679827,0.03735973,178.52,178.48,0.0413243]
[1748353681021,0.03735973,178.52,178.51,5.5986]
[1748353681226,0.03735973,178.52,178.48,0.0413243]
[1748353681423,0.03735973,178.52,178.5,5.5987]
[1748353681928,0.03735973,178.52,178.51,5.5986]
[1748353682725,33.6,178.56,178.53,5.5978]
[1748353683026,5.5974,178.55,178.49,1.8528]
[1748353683226,16.81,178.66,178.49,1.8528]
[1748353683227,33.6,178.63,178.49,119.3128]
[1748353683619,0.03626809,178.58,178.54,0.0425278]
[1748353683818,0.03626809,178.58,178.55,5.5971]
[1748353684020,0.03626809,178.58,178.54,0.0425278]
[1748353684221,0.03626809,178.58,178.55,5.5973]
[1748353684617,0.03626809,178.58,178.54,0.0425278]
[1748353684823,5.597,178.57,178.54,0.0425278]
[1748353685129,0.03626809,178.58,178.54,0.0425278]
[1748353685521,5.5968,178.57,178.54,0.0425278]
[1748353686133,5.63276809,178.58,178.54,0.0425278]
[1748353686528,0.03626809,178.58,178.54,0.0425278]
[1748353686825,1.9911,178.69,178.54,0.0425278]
[1748353687020,33.44,178.68,178.54,2.0294]
[1748353687221,33.44,178.68,178.61,5.5954]
[1748353687424,33.44,178.68,178.54,2.0294]
[1748353687826,33.44,178.68,178.59,0.03677926]
[1748353688426,33.44,178.68,178.64,5.5943]
[1748353688618,33.44,178.68,178.64,0.03745856]
[1748353688824,33.44,178.72,178.64,0.03745856]
[1748353689026,5.5929,178.7,178.66,5.5939]
[1748353689330,33.44,178.72,178.64,0.03745856]
[1748353689630,33.44,178.73,178.64,0.03745856]
[1748353690027,5.5924,178.71,178.66,5.5939]
[1748353690228,5.5924,178.71,178.67,0.03859871]
[1748353690629,5.5924,178.71,178.67,5.63209871]
[1748353691027,39.0318,178.73,178.67,0.03859871]
[1748353691234,39.0318,178.73,178.69,5.5928]
[1748353691426,33.44,178.73,178.67,0.03859871]
[1748353692630,5.5923,178.72,178.68,5.5933]
[1748353693130,5.5927,178.71,178.68,5.5933]
[1748353693331,5.5927,178.71,178.67,0.03859871]
[1748353694335,33.44,178.73,178.67,0.03859871]
[1748353694832,5.5927,178.7,178.67,5.63219871]
[1748353695034,5.5927,178.7,178.67,0.03859871]
[1748353695233,33.44,178.73,178.67,0.03859871]
[1748353695836,5.5927,178.7,178.67,0.03859871]
[1748353696132,33.44,178.73,178.67,0.03859871]
[1748353696327,5.5921,178.72,178.68,5.5932]
[1748353696731,483.7,178.74,178.67,0.03859871]
[1748353697725,5.5931,178.69,178.67,0.03859871]
[1748353697928,483.7,178.74,178.67,0.03859871]
[1748353698328,485.7257,178.74,178.67,0.03859871]
[1748353698934,5.5933,178.68,178.67,0.03859871]
[1748353699122,33.42,178.7,178.67,0.03859871]
[1748353700127,5.5932,178.69,178.67,0.03859871]
[1748353700437,33.42,178.7,178.67,0.03859871]
[1748353700633,33.42,178.7,178.46,3.21814761]
[1748353700634,39.02,178.7,178.54,33.42]
[1748353700835,0.1467,178.69,178.54,0.84671535]
[1748353701132,7.61729584,178.66,178.57,5.5965]
[1748353701341,33.42,178.65,178.57,5.5965]
[1748353701634,0.0414291,178.63,178.59,0.039648]
[1748353702833,0.0414291,178.63,178.6,5.5957]
[1748353703732,0.0414291,178.63,178.61,5.5955]
[1748353703933,0.0414291,178.63,178.59,0.039648]
[1748353704337,0.0414291,178.63,178.6,5.5957]
[1748353704537,0.0414291,178.63,178.59,0.039648]
[1748353705539,5.5954,178.62,178.59,0.039648]
[1748353705740,0.0414291,178.63,178.59,0.039648]
[1748353706443,5.6364291,178.63,178.59,5.635748]
[1748353707940,0.0414291,178.63,178.59,5.635748]
[1748353708840,5.5952,178.62,178.59,5.635748]
[1748353709039,0.0414291,178.63,178.59,0.039648]
[1748353709237,5.5954,178.62,178.59,0.039648]
[1748353710143,0.0414291,178.63,178.59,0.039648]
[1748353710639,0.0414291,178.63,178.6,5.5956]